Cogmind - Beta 11.1 @@@ ROGUE MODE // 2022.08.15 @ 23:30:30 Player: NoNeedToExplain Result: Destroyed by D-53 Grenadier with Mini Grenade Launcher Performance ------------- Evolutions (0) 0 Regions Visited (2) 400 Robots Destroyed (15) 75 Value Destroyed (315) 315 Prototype IDs (2) 40 Alien Tech Used (0) 0 Bonus (-63) -63 TOTAL SCORE: 767 Bonus ------- Friendly Fire -63 Cogmind --------- Core Integrity 0/250 Matter 251/300 Energy 98/100 System Corruption 0% Temperature Cool (0) Movement Core (50) Location -10/Mines Parts ------- > --- POWER (1) -------- (None) > --- PROPULSION (2) --- (None) > --- UTILITY (2) ------ Visual Processing Unit > --- WEAPON (2) ------- (None) > --- INVENTORY (5) ---- High-capacity Storage Unit Large Matter Pod (0) Signal Interpreter Hardened Light Armor Plating Hardened Light Armor Plating Peak State ------------ > --- POWER ------------ Improved Ion Engine > --- PROPULSION ------- Light Treads Light Treads > --- UTILITY ---------- High-capacity Storage Unit Visual Processing Unit > --- WEAPON ----------- Particle Gun Assault Rifle > --- INVENTORY -------- Improved Ion Engine Light Nuclear Core Aluminum Leg Aluminum Leg Flexi-carbon Leg Wheel Large Storage Unit Large Matter Pod Sensor Array Signal Interpreter Transport Network Coupler Improved Targeting Computer Hardened Light Armor Plating Hardened Light Armor Plating Hardened Light Armor Plating Hardened Light Armor Plating EM Pulse Gun Grenade Launcher Datajack Mace [Rating: 13] Favorites ----------- Power Improved Ion Engine Engine Improved Ion Engine Propulsion Aluminum Leg Treads Light Treads Leg Aluminum Leg Utility Visual Processing Unit Storage High-capacity Storage Unit Processor Visual Processing Unit Weapon Assault Rifle Energy Gun Particle Gun Ballistic Gun Assault Rifle Launcher Grenade Launcher Build | -11 -10 -10 ------- Run | Scr Mat Min Slots Evolved . | . . . Power . | . . . Propulsion . | . . . Utility . | . . . Weapon . | . . . Parts Attached 23 | 7 11 5 Power 3 | 1 2 . Engine 3 | 1 2 . Core . | . . . Reactor . | . . . Propulsion 10 | 2 6 2 Treads 4 | . 2 2 Leg 6 | 2 4 . Wheel . | . . . Hover . | . . . Flight . | . . . Utility 4 | 1 3 . Device . | . . . Storage 3 | 1 2 . Processor 1 | . 1 . Hackware . | . . . Protection . | . . . Artifact . | . . . Weapon 6 | 3 . 3 Energy Gun 1 | . . 1 Energy Cannon . | . . . Ballistic Gun 4 | 3 . 1 Ballistic Cannon . | . . . Launcher 1 | . . 1 Special Weapon . | . . . Impact Weapon . | . . . Slashing Weapon . | . . . Piercing Weapon . | . . . Special Melee Weapon . | . . . Unidentified Prototypes . | . . . Parts Lost 6 | . . 6 Power 1 | . . 1 Propulsion 2 | . . 2 Utility . | . . . Weapon 3 | . . 3 Highest Loss Streak 5 | . . 5 To Critical Strikes . | . . . Average Slot Usage (%) 98 | . 99 92 Engine 13 | . 14 12 Treads 5 | . . 24 Leg 22 | . 27 2 Storage 13 | . 14 12 Processor 13 | . 13 14 Energy Gun 1 | . . 9 Ballistic Gun 25 | . 28 14 Naked Turns . | . . . Heaviest Build 52 | 14 51 52 Greatest Support 40 | 20 40 40 Greatest Overweight (x) 3 | 3 2 2 Average Overweight (x) . | . . . Largest Inventory Capacity 20 | 8 20 20 Average Capacity 15 | 7 14 18 Most Carried 20 | 7 20 20 Average Carried 13 | 3 13 18 Final Capacity 20 | 8 20 5 Final Carried 20 | 6 20 5 Class Distribution -------------------- 100% | Mutant Dominant Class ---------------- Mutant | -10/Materials Mutant | -10/Mines Resources | -11 -10 -10 ----------- Run | Scr Mat Min Matter Collected 670 | 231 306 133 Remotely . | . . . Salvage Created 461 | . 343 118 Parts 26 | . 25 1 Haulers Intercepted 1 | . 1 . Recyclers Shooed . | . . . Parts Field Recycled . | . . . Retrieved Matter . | . . . Parts Self-Destructed . | . . . Prevented . | . . . Kills | -11 -10 -10 ------- Run | Scr Mat Min Combat Hostiles Destroyed 23 | . 10 13 Guns 12 | . 10 2 AOE 11 | . . 11 Classes Destroyed 6 | . 5 1 Tunneler 1 | . 1 . Hauler 1 | . 1 . Watcher 1 | . 1 . Swarmer 6 | . 6 . Grunt 6 | . 4 2 Assembled 11 | . . 11 Best Kill Streak 11 | . 3 11 Combat Bots Only 11 | . 3 11 Max Kills in Single Turn 5 | . 2 5 Gunslinging . | . . . Exploded 5 | . . 5 Melee . | . . . Uniques/NPCs Destroyed . | . . . Combat | -11 -10 -10 -------- Run | Scr Mat Min Damage Taken 1133 | . 364 769 Core 253 | . 56 197 Absorbed by Shields . | . . . Core Remaining (%) 100 | 100 . . Volleys Fired 52 | . 36 16 Largest 2 | . 2 2 Hottest 85 | . 40 85 Shots Fired 100 | . 72 28 Gun 96 | . 72 24 Cannon . | . . . Launcher 4 | . . 4 Special . | . . . Kinetic 93 | . 72 21 Thermal 3 | . . 3 Explosive 4 | . . 4 Electromagnetic . | . . . Robot Hit Streak 13 | . 8 13 Robot Miss Streak 3 | . 3 3 Penetration Max . | . . . Secondary Targets 1 | . 1 . Max Gunslinging Chain 1 | . 1 . Shots Hit Robots 65 | . 46 19 Core Hits 44 | . 18 26 Critical Kills . | . . . Critical Parts Destroyed . | . . . Critical Strikes . | . . . Melee Attacks . | . . . Impact . | . . . Slashing . | . . . Piercing . | . . . Sneak Attacks . | . . . Combat Hostiles . | . . . Follow-up Attacks . | . . . Damage Inflicted 1768 | . 606 1162 Guns 845 | . 606 239 Cannons . | . . . Explosions 923 | . . 923 Melee . | . . . Ramming . | . . . Kinetic 813 | . 606 207 Thermal 32 | . . 32 Explosive 923 | . . 923 Electromagnetic . | . . . Impact . | . . . Slashing . | . . . Piercing . | . . . Highest Corruption . | . . . Average Corruption . | . . . Corruption Purged . | . . . Corruption Blocked . | . . . Overload Shots . | . . . Overflow Damage 26 | . . 26 Projectiles . | . . . Explosions 26 | . . 26 Melee . | . . . Knockbacks . | . . . Impact . | . . . Kinetic . | . . . Secondary . | . . . Self-Inflicted Damage 5 | . . 5 Shots 1 | . . 1 Rammed . | . . . Targets Rammed . | . . . Kicked . | . . . Crushed . | . . . Highest Temperature 126 | . 2 126 Average Temperature 32 | . 2 38 Received Heat Transfer 279 | . 84 195 Siege Activations . | . . . Robots Corrupted . | . . . Combat Hostiles . | . . . Parts Fried . | . . . Impact Corruptions . | . . . Robots Melted . | . . . Combat Hostiles . | . . . Parts Melted . | . . . Heat Transferred 74 | . . 74 Parts Sabotaged . | . . . Parts Stolen . | . . . Parts Stripped . | . . . Power Chain Reactions . | . . . Missiles Intercepted . | . . . Alert | -11 -10 -10 ------- Run | Scr Mat Min Peak Influence 127 | . 127 94 Initial . | . . . Average 27 | . 27 39 Maximum Alert Level . | . . . Low Security (%) 100 | 100 100 100 Level 1 . | . . . Level 2 . | . . . Level 3 . | . . . Level 4 . | . . . Level 5 . | . . . High Security . | . . . Max Security . | . . . Squads Dispatched 2 | . 2 . Investigation 1 | . 1 . Extermination . | . . . Reinforcement 1 | . 1 . Assault . | . . . Garrison . | . . . Intercept . | . . . Searches Triggered . | . . . Construction Impeded . | . . . Haulers Reinforced . | . . . Active Scanning Responses . | . . . Cargo Convoy Interrupts . | . . . Stealth | -11 -10 -10 --------- Run | Scr Mat Min Distress Signals . | . . . Communications Jammed . | . . . Distress Signals . | . . . Times Spotted 40 | . 15 25 Peak Tracking Total 17 | . 3 17 Tactical Retreats 2 | . . 2 Traps | -11 -10 -10 ------- Run | Scr Mat Min Traps Triggered 4 | . 4 . Indirectly . | . . . Trap Hack Attempts . | . . . Triggered . | . . . Disarmed . | . . . Reprogrammed . | . . . Reused . | . . . Traps Extracted . | . . . Installed . | . . . Triggered . | . . . Machines | -11 -10 -10 ---------- Run | Scr Mat Min Machines Disabled . | . . . Max in Single Turn . | . . . Machines Sabotaged . | . . . Garrisons Compromised . | . . . Overloaded Fab Kills . | . . . Hacking | -11 -10 -10 --------- Run | Scr Mat Min Machines Accessed 5 | . 5 . Terminals 5 | . 5 . Fabricators . | . . . Repair Stations . | . . . Recycling Units . | . . . Scanalyzers . | . . . Garrison Access . | . . . Total Hacks 14 | . 14 . Successful 9 | . 9 . Failed 4 | . 4 . Catastrophic . | . . . Database Lockouts 1 | . 1 . Manual 12 | . 12 . Terminals 14 | . 14 . Fabricators . | . . . Repair Stations . | . . . Recycling Units . | . . . Scanalyzers . | . . . Garrison Access . | . . . Terminal Hacks 7 | . 7 . Robot Analysis 2 | . 2 . Prototype ID Bank 1 | . 1 . Terminal Index 1 | . 1 . Unreport Threat 2 | . 2 . Patrol Status 1 | . 1 . Fabricator Hacks . | . . . Repair Station Hacks . | . . . Recycling Unit Hacks . | . . . Scanalyzer . | . . . Garrison Access Hacks . | . . . Unauthorized Hacks 2 | . 2 . Terminals 2 | . 2 . Botnet 1 | . 1 . Operators 1 | . 1 . Fabricators . | . . . Repair Stations . | . . . Recycling Units . | . . . Scanalyzers . | . . . Garrison Access . | . . . Data Cores Recovered . | . . . Used . | . . . Hacking Detections 4 | . 4 . Full Trace Events . | . . . Feedback Events . | . . . Feedback Blocked . | . . . Robot Schematics Acquired . | . . . Robots Built . | . . . Authchips . | . . . Time . | . . . Total Robot Build Rating . | . . . Part Schematics Acquired . | . . . Parts Built . | . . . Authchips . | . . . Time . | . . . Total Part Build Rating . | . . . Parts Repaired . | . . . Time . | . . . Parts Recycled . | . . . Recycled Matter . | . . . Retrieved Matter . | . . . Retrieved Components . | . . . Parts Scanalyzed . | . . . Part Schematics Acquired . | . . . Parts Damaged . | . . . Bothacking | -11 -10 -10 ------------ Run | Scr Mat Min Used RIF Installer . | . . . Robots Hacked . | . . . Non-combat . | . . . Combat . | . . . Robot Hacks Applied . | . . . Relay Couplers Released . | . . . Fabnet Peak Effective % . | . . . Robots Rewired . | . . . Allies Hacked . | . . . Hacks Repelled . | . . . Allies | -11 -10 -10 -------- Run | Scr Mat Min Total Allies . | . . . Largest Group . | . . . Highest-Rated Group . | . . . Highest-Rated Ally . | . . . Total Orders . | . . . Ally Attacks . | . . . Total Damage . | . . . Kills . | . . . Allies Corrupted . | . . . Allies Melted . | . . . Intel | -11 -10 -10 ------- Run | Scr Mat Min Robot Analysis Total 2 | . 2 . Derelict Logs Recovered . | . . . Drone Launches . | . . . Drone Recoveries . | . . . Exploration | -11 -10 -10 ------------- Run | Scr Mat Min Turns Passed 1301 | 66 1001 234 Spaces Moved 613 | 43 464 106 Core 47 | 7 . 40 Treads 67 | . 2 65 Legs 499 | 36 462 1 Wheels . | . . . Hover . | . . . Flight . | . . . Fastest Speed 50 | 50 120 50 Average Speed 174 | 116 181 168 Slowest Speed 260 | 200 260 260 Overloaded Moves . | . . . Propulsion Burnouts . | . . . Robots Hopped . | . . . Cave-ins Triggered . | . . . Exploration Rate (%) 40 | 4 77 40 Regions Visited 2 Branch Regions 1 Pre-discovered Areas . | . . . Known Exits Taken . | . . . Unknown Exits Taken 2 | 1 1 . Scrap Searched 1 | . . 1 Spaces Dug 7 | . . 7 Terrain Destroyed 22 | . . 22 Melee . | . . . Projectile . | . . . AOE 22 | . . 22 Terrain Rammed . | . . . Walls Destroyed . | . . . Machines Disabled . | . . . Actions | -11 -10 -10 --------- Run | Scr Mat Min Total 746 | 56 555 135 Wait 21 | . 19 2 Move 611 | 42 463 106 Hop . | . . . Pick Up 26 | 6 17 3 Fast Attach 7 | 6 1 . Attach 2 | 1 . 1 Detach 1 | 1 . . Swap 14 | . 10 4 Drop 12 | . 9 3 Fire 52 | . 36 16 Melee . | . . . Ram . | . . . Kick . | . . . Crush . | . . . Escape Stasis . | . . . Rewire . | . . . Trap . | . . . Miscellaneous . | . . . Route ------- -11/Scrapyard -10/Materials (discovered 3 exits: [*Mat x2] / [*Min]) -10/Mines History --------- Turn | Location | Event 16 | -11/Scrapyard | Discovered new exit (range 15) 67 | -11/Scrapyard | Entered Materials 306 | -10/Materials | Discovered new exit (range 10) 337 | -10/Materials | Build established: Mutant 544 | -10/Materials | Discovered new exit (range 6) 577 | -10/Materials | Central database locked down 1003 | -10/Materials | Discovered new exit (range 9) 1068 | -10/Materials | Entered Mines 1089 | -10/Mines | Core integrity fell below 50% 1252 | -10/Mines | Assembled infested the area 1257 | -10/Mines | Assisted by a Guerilla fighting off Assembled 1285 | -10/Mines | Destroyed 11 combat bots 1302 | -10/Mines | Destroyed by D-53 Grenadier with Mini Grenade Launcher Last Messages --------------- 01264_ HV Slug penetrates as-26721. 01264_ as-26721 suffers critical hit (Destroy). 01264_ as-26721 destroyed. 01265_ VC-TNW(h) suffers critical hit (Destroy). 01267_ VC-TNW(h) destroyed. 01269_ Acquired 24 matter. 01272_ The unstable cave ceiling collapses. 01274_ Dropped Aluminum Leg. 01274_ Acquired Corrupted Flexi-carbon Leg. 01276_ C-30 ARC bursts open, deploying its payload. 01276_ D-53 Grenadier unfolds itself. 01277_ Assault Rifle destroyed. 01279_ Particle Gun destroyed. 01280_ Dropped Hcp. Storage Unit. 01280_ Imp. Ion Engine destroyed. 01280_ Dropped Lrg. Storage Unit. 01280_ Acquired Hcp. Storage Unit. 01282_ Lgt. Treads destroyed. 01302_ Laser Drill disabled. 01302_ Lgt. Treads destroyed. Map ----- +----------------------------------------------------+ | ???????????????????????????????????????? | | ???????????????????????????????????????? | | ???????????????????????????????????????? | | ???????????????????????????????????????? | | ???????????????????????????????????????? | | ???????????????????????????????????????? | | ???????????????????????????????????????? | | ???????????????????????????????????????? | | ???????????????????????????????????????? | | ???????????????????????????????????????? | | ???????????????????????????????????????? | | ???????????????????????????????????????? | | ???????????????????????????????????????? | | ???????????????????????????????????????? | | ????#####??????????????????????????????? | | ???## ##?????????????????????????????? | | ??## #?????????????????????????????? | | ??# ##?????????####???????????????? | | ??# ##???##### #???????????????? | | ??## ##### #???????????????? | | ???##### #???????????????? | | ???????## #???????????????? | | ????????# ##???????????????? | | ????????## ##????????????????? | | ????????## ##?????????????????? | | ????????# @ #??????????????????? | | ????????# #??????????????????? | | ????????# d #??????????????????? | | ????????# d #??#???????????????? | | ????????## ##? #???????????????? | | ?????????# ####t### ####????????????? | | ?????????## ##??# ####?????????? | | ????? ????####???# ##????????? | | ????? ??????????## ## ##???????? | | ???? " ###???????# #?? #???????? | | ???? ?????## ## #??????? | | ?????? ??### # ### ??## | | ????????# ### ##???? ### ??# | | ?????????# ## ###????????????# | | ??????????# ! #??????###?????# | | ??????????# % = ##?????# ?????? | | ??????????## ]! /! #####?# #?????? | | ???????????# *=[ ### #?###??# | | ???????????# =* ## ### #### | | ???????????# " ## | | ???????????# /"%" | | ???????????# ####### | | ???????????### ##?????##### | | ?????????????# ##??????????## | | ?????????????# ##????????????# | +----------------------------------------------------+ Best States ------------- Heat Dissipation 25 Energy Generation 12 Energy Capacity 265 Matter Stores 300 Matter Capacity 300 Sight Range 18 Terrain Scan Density 10 Evasion (%) 55 Recoil Reduction 2 Item Schematics ----------------- None Robot Schematics ------------------ None Fabricated ------------ Nothing Alien Tech Used ----------------- None Achievements -------------- None Challenges ------------ None Game ------ Seed SeismicBehemothSplitter Manual? 0 Play Time 00:11:46 Cumulative 134.2 hours Start 2022.08.15 @ 23:20:42 End 2022.08.15 @ 23:30:30 Sessions 1 Manual Loads 0 Difficulty Rogue Special Mode None Game No. 68 Rogue 68 Adventurer 0 Explorer 0 Win Type - Total 6 Types 6/0/0/0/0/0/0/0/0 Lore% 56 Gallery% 70 Achievement% 58 Wizard Run 0 Options --------- ASCII 0 Keyboard 0 Movement Numpad Keybinds 0 Fullscreen 2 Font 24/Smallcaps Map View 76x50 Tactical HUD 1 Map Filters NONE Filters NONE Steam 1 RUN: cd9c9fa3-a41d-46b9-8beb-10f06faf0bf2